Cogmind - Beta 13 @@@ ROGUE MODE // 2024.05.31 @ 21:51:09 Player: Bace Troncons Result: Destroyed by NK-SDP(R) with Subdweller Beam Cannon Performance ------------- Evolutions (0) 0 Regions Visited (2) 400 Robots Destroyed (22) 110 Value Destroyed (502) 502 Prototype IDs (2) 40 Alien Tech Used (0) 0 Bonus (0) 0 TOTAL SCORE: 1052 Bonus ------- None Cogmind --------- Core Integrity 0/250 Matter 230/300 Energy 117/160 System Corruption 7% Temperature Cool (9) Movement Core (150) Ox2 Location -10/Subcaves Parts ------- > --- POWER (1) -------- Light Nuclear Core > --- PROPULSION (2) --- (None) > --- UTILITY (2) ------ (None) > --- WEAPON (2) ------- Maul > --- INVENTORY (5) ---- Terrain Scanner Hacking Suite Barrage Gun Plasma Cutter Peak State ------------ > --- POWER ------------ Ion Engine > --- PROPULSION ------- Light Treads Light Treads > --- UTILITY ---------- Small Storage Unit Improved Terrain Scanner > --- WEAPON ----------- Barrage Gun Maul > --- INVENTORY -------- Light Nuclear Core Signal Interpreter Terrain Scanner Hacking Suite Assault Rifle Assault Rifle Light Assault Rifle Plasma Cutter [Rating: 13] Favorites ----------- Power Ion Engine Engine Ion Engine Power Core Light Nuclear Core Propulsion Light Treads Treads Light Treads Utility Improved Terrain Scanner Device Improved Terrain Scanner Storage Small Storage Unit Processor Signal Interpreter Protection Scrap Shield Weapon Assault Rifle Ballistic Gun Assault Rifle Impact Weapon Maul Build | -11 -10 -10 ------- Run | Yrd Mat Sub Slots Evolved . | . . . Power . | . . . Propulsion . | . . . Utility . | . . . Weapon . | . . . Parts Attached 15 | 7 2 6 Power 4 | 1 1 2 Engine 3 | 1 1 1 Core 1 | . . 1 Reactor . | . . . Propulsion 2 | 2 . . Treads 2 | 2 . . Leg . | . . . Wheel . | . . . Hover . | . . . Flight . | . . . Utility 4 | 2 . 2 Device 1 | 1 . . Storage 1 | 1 . . Processor 1 | . . 1 Hackware . | . . . Protection 1 | . . 1 Artifact . | . . . Weapon 5 | 2 1 2 Energy Gun . | . . . Energy Cannon . | . . . Ballistic Gun 4 | 2 . 2 Ballistic Cannon . | . . . Launcher . | . . . Special Weapon . | . . . Impact Weapon 1 | . 1 . Slashing Weapon . | . . . Piercing Weapon . | . . . Special Melee Weapon . | . . . Unidentified Prototypes . | . . . Parts Lost 6 | . . 6 Power 1 | . . 1 Propulsion 2 | . . 2 Utility 2 | . . 2 Weapon 1 | . . 1 Highest Loss Streak 3 | . . 3 To Critical Strikes . | . . . Average Slot Usage (%) 90 | . 100 81 Engine 13 | . 14 13 Treads 21 | . 28 16 Device 11 | . 14 8 Storage 8 | . 14 3 Processor 4 | . . 9 Ballistic Gun 20 | . 27 13 Impact Weapon 7 | . . 14 Naked Turns . | . . . Heaviest Build 29 | 13 16 29 Greatest Support 40 | 40 40 40 Greatest Overweight (x) 9 | 3 . 9 Average Overweight (x) . | . . 1 Largest Inventory Capacity 8 | 8 8 8 Average Capacity 6 | 7 8 5 Most Carried 8 | 5 8 8 Average Carried 6 | 3 7 5 Final Capacity 8 | 8 8 5 Final Carried 8 | 5 8 4 Class Distribution -------------------- 100% | Mutant Dominant Class ---------------- Mutant | -10/Materials Mutant | -10/Subcaves Resources | -11 -10 -10 ----------- Run | Yrd Mat Sub Matter Collected 686 | 277 264 145 Remotely . | . . . Salvage Created 661 | 67 411 183 Parts 47 | 4 32 11 Haulers Intercepted . | . . . Recyclers Shooed . | . . . Parts Field Recycled . | . . . Retrieved Matter . | . . . Parts Self-Destructed 10 | . . 10 Prevented . | . . . Kills | -11 -10 -10 ------- Run | Yrd Mat Sub Combat Hostiles Destroyed 14 | . 7 7 Melee 4 | . . 4 Guns 9 | . 7 2 Classes Destroyed 10 | 2 6 2 Worker 1 | . 1 . Tunneler 1 | 1 . . Recycler 1 | 1 . . Mechanic 1 | . 1 . Operator 1 | . 1 . Watcher 3 | . 3 . Swarmer 5 | . 2 3 Grunt 5 | . 5 . Sentry 1 | . . 1 Subdweller 3 | . . 3 Best Kill Streak 5 | 2 5 2 Combat Bots Only 2 | . 2 2 Max Kills in Single Turn 2 | 1 2 1 Gunslinging . | . . . Exploded . | . . . Melee 1 | . . 1 Uniques/NPCs Destroyed . | . . . Combat | -11 -10 -10 -------- Run | Yrd Mat Sub Hostile Shots Fired 93 | . 43 50 Missed 22 | . 10 12 Damage Taken 1230 | . 394 836 Core 274 | . 60 214 Absorbed by Shields . | . . . Core Remaining (%) 100 | 100 . . Volleys Fired 49 | 4 40 5 Largest 2 | 2 2 1 Hottest 40 | 40 40 28 Shots Fired 99 | 8 84 7 Gun 99 | 8 84 7 Cannon . | . . . Launcher . | . . . Special . | . . . Kinetic 99 | 8 84 7 Thermal . | . . . Explosive . | . . . Electromagnetic . | . . . Robot Hit Streak 9 | 4 9 8 Robot Miss Streak 5 | 2 5 1 Penetration Max . | . . . Secondary Targets 1 | . 1 . Max Gunslinging Chain 1 | . 1 . Shots Hit Robots 78 | 6 51 21 Core Hits 30 | 3 22 5 Critical Kills . | . . . Critical Parts Destroyed 2 | . . 2 Critical Strikes 4 | . . 4 Smash 4 | . . 4 Melee Attacks 38 | . 1 37 Impact 38 | . 1 37 Slashing . | . . . Piercing . | . . . Sneak Attacks . | . . . Combat Hostiles . | . . . Follow-up Attacks . | . . . Damage Inflicted 1425 | 75 663 687 Guns 809 | 75 663 71 Cannons . | . . . Explosions . | . . . Melee 616 | . . 616 Ramming . | . . . Kinetic 809 | 75 663 71 Thermal . | . . . Explosive . | . . . Electromagnetic . | . . . Impact 616 | . . 616 Slashing . | . . . Piercing . | . . . Highest Corruption 7 | . 7 7 Average Corruption 6 | . 6 7 Corruption Purged . | . . . Corruption Blocked . | . . . Effects 68 | . 24 44 Message Errors 14 | . 5 9 Matter Fused 16 | . 2 14 Heat Flow Errors 6 | . 2 4 Energy Discharges 5 | . 3 2 Parts Rejected 1 | . . 1 Data Loss (minor) 14 | . 4 10 Data Loss (major) 4 | . 3 1 Misfires 6 | . 4 2 Alerts 2 | . 1 1 Overload Shots . | . . . Overflow Damage 83 | . . 83 Projectiles . | . . . Explosions . | . . . Melee 83 | . . 83 Knockbacks 3 | . . 3 Impact 3 | . . 3 Kinetic . | . . . Secondary . | . . . Self-Inflicted Damage . | . . . Shots . | . . . Rammed . | . . . Targets Rammed . | . . . Kicked . | . . . Crushed . | . . . Highest Temperature 249 | . 236 249 Average Temperature 80 | . 61 109 Received Heat Transfer 441 | . 207 234 Siege Activations . | . . . Robots Corrupted . | . . . Combat Hostiles . | . . . Parts Fried 2 | . . 2 Impact Corruptions 3 | . . 3 Robots Melted . | . . . Combat Hostiles . | . . . Parts Melted . | . . . Heat Transferred . | . . . Parts Sabotaged . | . . . Parts Stolen . | . . . Parts Stripped . | . . . Power Chain Reactions . | . . . Alert | -11 -10 -10 ------- Run | Yrd Mat Sub Peak Influence 192 | 10 192 . Initial 6 | . 6 . Average 34 | 5 38 . Maximum Alert Level . | . . . Low Security (%) 100 | 100 100 . Level 1 . | . . . Level 2 . | . . . Level 3 . | . . . Level 4 . | . . . Level 5 . | . . . High Security . | . . . Max Security . | . . . Squads Dispatched 1 | . 1 . Investigation . | . . . Extermination . | . . . Reinforcement 1 | . 1 . Assault . | . . . Garrison . | . . . Intercept . | . . . Searches Triggered . | . . . Construction Impeded . | . . . Haulers Reinforced . | . . . Active Scanning Responses . | . . . Cargo Convoy Interrupts . | . . . Stealth | -11 -10 -10 --------- Run | Yrd Mat Sub Distress Signals 1 | . 1 . Communications Jammed . | . . . Distress Signals . | . . . Times Spotted 26 | . 15 11 Peak Tracking Total 3 | . 3 2 Tactical Retreats 2 | . 2 . Traps | -11 -10 -10 ------- Run | Yrd Mat Sub Traps Triggered 5 | . 5 . Indirectly . | . . . Trap Hack Attempts . | . . . Triggered . | . . . Disarmed . | . . . Reprogrammed . | . . . Reused . | . . . Traps Extracted . | . . . Installed . | . . . Triggered . | . . . Machines | -11 -10 -10 ---------- Run | Yrd Mat Sub Machines Disabled . | . . . Max in Single Turn . | . . . Machines Repaired . | . . . Machines Dismantled . | . . . Machines Sabotaged . | . . . Overloaded Fab Kills . | . . . Hacking | -11 -10 -10 --------- Run | Yrd Mat Sub Machines Accessed 4 | . 3 1 Terminals 3 | . 3 . Fabricators . | . . . Repair Stations . | . . . Recycling Units . | . . . Scanalyzers . | . . . Garrison Access . | . . . Total Hacks 6 | . 5 1 Successful 4 | . 3 1 Failed 2 | . 2 . Catastrophic . | . . . Database Lockouts . | . . . Manual . | . . . Terminals 5 | . 5 . Fabricators . | . . . Repair Stations . | . . . Recycling Units . | . . . Scanalyzers . | . . . Garrison Access . | . . . Terminal Hacks 4 | . 3 1 Record 1 | . . 1 Prototype ID Bank 1 | . 1 . Hauler Manifests 1 | . 1 . Registered Components 1 | . 1 . Fabricator Hacks . | . . . Repair Station Hacks . | . . . Recycling Unit Hacks . | . . . Scanalyzer . | . . . Garrison Access Hacks . | . . . Unauthorized Hacks . | . . . Terminals . | . . . Fabricators . | . . . Repair Stations . | . . . Recycling Units . | . . . Scanalyzers . | . . . Garrison Access . | . . . Data Cores Recovered . | . . . Used . | . . . Hacking Detections 2 | . 2 . Full Trace Events . | . . . Feedback Events . | . . . Feedback Blocked . | . . . Robot Schematics Acquired . | . . . Robots Built . | . . . Authchips . | . . . Time . | . . . Total Robot Build Rating . | . . . Part Schematics Acquired . | . . . Parts Built . | . . . Authchips . | . . . Time . | . . . Total Part Build Rating . | . . . Parts Repaired . | . . . Time . | . . . Parts Recycled . | . . . Recycled Matter . | . . . Retrieved Matter . | . . . Retrieved Components . | . . . Parts Scanalyzed . | . . . Part Schematics Acquired . | . . . Parts Damaged . | . . . Bothacking | -11 -10 -10 ------------ Run | Yrd Mat Sub Used RIF Installer . | . . . Robots Hacked . | . . . Non-combat . | . . . Combat . | . . . Robot Hacks Applied . | . . . Relay Couplers Released . | . . . Fabnet Peak Effective % . | . . . Robots Rewired . | . . . Allies Hacked . | . . . Hacks Repelled . | . . . Allies | -11 -10 -10 -------- Run | Yrd Mat Sub Total Allies . | . . . Largest Group . | . . . Highest-Rated Group . | . . . Highest-Rated Ally . | . . . Total Orders . | . . . Ally Attacks . | . . . Total Damage . | . . . Kills . | . . . Allies Corrupted . | . . . Allies Melted . | . . . Intel | -11 -10 -10 ------- Run | Yrd Mat Sub Robot Analysis Total . | . . . Derelict Logs Recovered . | . . . Drone Launches . | . . . Drone Recoveries . | . . . Exploration | -11 -10 -10 ------------- Run | Yrd Mat Sub Turns Passed 2890 | 164 1289 1437 Spaces Moved 926 | 89 382 455 Core 211 | 8 . 203 Treads 715 | 81 382 252 Legs . | . . . Wheels . | . . . Hover . | . . . Flight . | . . . Fastest Speed 50 | 50 160 150 Average Speed 175 | 155 160 192 Slowest Speed 500 | 200 160 500 Overloaded Moves . | . . . Propulsion Burnouts . | . . . Robots Hopped . | . . . Cave-ins Triggered . | . . . Exploration Rate (%) 33 | 5 67 27 Regions Visited 2 Branch Regions 1 Pre-discovered Areas . | . . . Known Exits Taken . | . . . Unknown Exits Taken 2 | 1 1 . Scrap Searched . | . . . Spaces Dug 1 | . . 1 Terrain Destroyed 1 | . . 1 Melee 1 | . . 1 Projectile . | . . . AOE . | . . . Terrain Rammed . | . . . Walls Destroyed . | . . . Machines Disabled . | . . . Actions | -11 -10 -10 --------- Run | Yrd Mat Sub Total 2028 | 104 980 944 Wait 972 | . 544 428 Move 924 | 88 381 455 Hop . | . . . Pick Up 15 | 5 7 3 Fast Attach 10 | 7 . 3 Attach 1 | . . 1 Detach 1 | . . 1 Swap 4 | . 2 2 Drop 14 | . 5 9 Fire 49 | 4 40 5 Melee 38 | . 1 37 Ram . | . . . Kick . | . . . Crush . | . . . Escape Stasis . | . . . Rewire . | . . . Trap . | . . . Miscellaneous . | . . . Route ------- -11/Scrapyard -10/Materials (discovered 5 exits: [*Mat x2] / [*Min x2] / *Sub) -10/Subcaves History --------- Turn | Location | Event 2 | -11/Scrapyard | Met Revision 17 17 | -11/Scrapyard | Discovered new exit (range 16) 165 | -11/Scrapyard | Entered Materials 318 | -10/Materials | Build established: Mutant 344 | -10/Materials | Discovered new exit (range 12) 460 | -10/Materials | Discovered new exit (range 13) 629 | -10/Materials | Discovered new exit (range 8) 708 | -10/Materials | Discovered new exit (range 12) 1449 | -10/Materials | Discovered new exit (range 3) 1454 | -10/Materials | Entered Subcaves 1456 | -10/Subcaves | Shifting Twisted Machinery released Sub. Machine Gun 1600 | -10/Subcaves | Shifting Twisted Machinery released Barrage Gun 2512 | -10/Subcaves | Visited Clippyterm 2717 | -10/Subcaves | Shifting Twisted Machinery released Scrap Shield 2719 | -10/Subcaves | Shifting Twisted Machinery released Barrage Gun 2876 | -10/Subcaves | Core integrity fell below 50% 2886 | -10/Subcaves | Core integrity fell below 20% 2891 | -10/Subcaves | Destroyed by NK-SDP(R) with Subdweller Beam Cannon Last Messages --------------- Barrage Gun falls loose from the Twisted Machinery. 02731_ Discarded Signal Interpreter. 02734_ Acquired Scrap Shield. 02742_ System corrupted: Matter fused (-9). 02745_ Dropped Sub. Machine Gun. 02746_ Acquired Barrage Gun. 02764_ System corrupted: Energy discharge (-78). 02781_ System corrupted: Matter fused (-5). 02811_ C CDTNGJV7/6OTZZVQXJXK8FOTULD 02828_ System corrupted: Matter fused (-10). 02833_ NK-SDP(R) emerges from the Twisted Machinery. 02851_ UX-K1M(R) knocked back. 02858_ System corrupted: Component data lost. 02873_ Scrap Shield destroyed. 02875_ UX-K1M(R) suffers critical hit (Smash). 02875_ Barrage Gun destroyed. 02878_ UX-K1M(R) destroyed. 02883_ Sub. Power Source destroyed. Map ----- +----------------------------------------------------+ | ?????????????????????????????????????????????????? | | ?????????????????????????????????????????????????? | | ?????????????????????????????????????????????????? | | ?????????????????????????????????????????????????? | | ?????????????????????????????????????????????????? | | ?????????????????????????????????????????????????? | | ?????????????????????????????????????????????????? | | ?????????????????????????????????????????????????? | | ?????????????????????????????????????????????????? | | ?????????????????????????????????????????????????? | | ?????????????????????????????????????????????????? | | ?????????????????????????????????????????????????? | | ?????????????????????????????????????????????????? | | ?????????????????????????????????????????????????? | | ?????????????????????????????????????????????????? | | ???????????????????????????????#????##???????????? | | ############?????????????????? ##?? ????????????? | | # ## # "#????????????????? ## ????????????? | | "" #????#######?????? ????????????? | | """" ###????# ## #####? ????????????? | | ### ####?????## # ## ????????????? | | ??#####??####??# # #; ?????????????? | | #####????# "#?## # ## ??????????????? | | # ###### ### # #?????????????????????? | | ## # # " # * ##????????##""?????????? | | [ " #; %@#### ???????? | | " ### R #????????? | | ## # # # ## ####; ###??????????????? | | # #################?##??########????????????????? | | ## #?????????????????????????????????????????????? | | ?#####???????????????????????????????????????????? | | ?## #???????????????????????????????????????????? | | ##" #???????????????????????????????????????????? | | ""#????????????????????????????????????????????? | | #????????????????????????????????????????????? | | #????????????????????????????????????????????? | | #????????????????????????????????????????????? | | #?????????? ?????????????????????????????????? | | # #????????? ?????????????????????????????????? | | ## ##????#??? #????????????????????????????????? | | ?# ####????? #????????????????????????????????? | | ?# "#????? %#????????????????????????????????? | | ?## " ##??#" #####????????????????????????????? | | ??# "" " ##?#" " #????????????????????????????? | | ??# "## " ### """" ????????????????????????????? | | ### ###" " " """ ???????????????????????????? | | ## #?###*""" ???????????????????????????? | | ?## #??##&%"" ## ??????????????????????????????? | | ??######="" "" ##????? ?????????????????????????? | | ????## """[ ##??????????????????????????????? | +----------------------------------------------------+ Best States ------------- Heat Dissipation 25 Energy Generation 15 Energy Capacity 250 Matter Stores 300 Matter Capacity 300 Sight Range 16 Terrain Scan Range 16 Terrain Scan Density 10 Armor Coverage 800 Evasion (%) 40 Recoil Reduction 2 Item Schematics ----------------- None Robot Schematics ------------------ None Fabricated ------------ Nothing Alien Tech Used ----------------- None Achievements -------------- None Challenges ------------ None Game ------ Seed TripodSlugMallet Manual? 0 Play Time 00:15:15 Cumulative 97.1 hours Start 2024.05.31 @ 21:33:23 End 2024.05.31 @ 21:51:09 Sessions 1 Manual Loads 0 Difficulty Rogue Special Mode None Game No. 166 Rogue 166 Adventurer 0 Explorer 0 Win Type - Total 1 Types 1/0/0/0/0/0/0/0/0 Lore% 42 Gallery% 47 Achievement% 33 Wizard Run 0 Options --------- Layout 1 ASCII 0 Keyboard 1 Movement Numpad Keybinds 0 Fullscreen 1 Font 24/Smallcaps Map View 50x35 Zoom Use 0% Tactical HUD 1 Map Filters NONE Filters NONE Steam 1 RUN: 8f7395ed-fcfb-4629-829e-02c51f9f15ed